Cogmind - Beta 12 @@@ ROGUE MODE // 2024.02.12 @ 13:22:14 Player: Remuluson2 Result: Destroyed by S-10 Pest with Light Assault Rifle Performance ------------- Evolutions (0) 0 Regions Visited (4) 800 Robots Destroyed (17) 85 Value Destroyed (262) 262 Prototype IDs (0) 0 Alien Tech Used (0) 0 Bonus (0) 0 TOTAL SCORE: 1147 Bonus ------- None Cogmind --------- Core Integrity 0/250 Matter 256/300 Energy 93/100 System Corruption 0% Temperature Cool (0) Movement Core (50) Location -9/Mines Parts ------- > --- POWER (1) -------- (None) > --- PROPULSION (2) --- (None) > --- UTILITY (2) ------ (None) > --- WEAPON (2) ------- (None) > --- INVENTORY (5) ---- Ion Engine Small Storage Unit Sensor Array Peak State ------------ > --- POWER ------------ Ion Engine > --- PROPULSION ------- Aluminum Leg Aluminum Leg > --- UTILITY ---------- Signal Interpreter Hacking Suite > --- WEAPON ----------- Improved Light Cannon Improved Light Cannon > --- INVENTORY -------- Ion Engine Aluminum Leg Small Storage Unit Medium Laser Grenade Launcher [Rating: 11] Favorites ----------- Power Ion Engine Engine Ion Engine Propulsion Aluminum Leg Leg Aluminum Leg Wheel Wheel Utility Signal Interpreter Device Seismic Detector Processor Signal Interpreter Hackware Hacking Suite Protection Light Armor Plating Weapon Improved Light Cannon Energy Gun Medium Laser Ballistic Gun Light Assault Rifle Ballistic Cannon Improved Light Cannon Launcher Grenade Launcher Special Melee Weapon Datajack Build | -11 -10 -10 -10 -9 ------- Run | Jun Mat Min Exi Min Slots Evolved . | . . . . . Power . | . . . . . Propulsion . | . . . . . Utility . | . . . . . Weapon . | . . . . . Parts Attached 27 | 11 10 3 . 3 Power 3 | 2 1 . . . Engine 3 | 2 1 . . . Core . | . . . . . Reactor . | . . . . . Propulsion 8 | 4 1 2 . 1 Treads . | . . . . . Leg 6 | 2 1 2 . 1 Wheel 2 | 2 . . . . Hover . | . . . . . Flight . | . . . . . Utility 7 | 3 3 1 . . Device 3 | 3 . . . . Storage . | . . . . . Processor 2 | . 2 . . . Hackware 1 | . 1 . . . Protection 1 | . . 1 . . Artifact . | . . . . . Weapon 9 | 2 5 . . 2 Energy Gun 1 | 1 . . . . Energy Cannon . | . . . . . Ballistic Gun 2 | 1 1 . . . Ballistic Cannon 3 | . 2 . . 1 Launcher 2 | . 1 . . 1 Special Weapon . | . . . . . Impact Weapon . | . . . . . Slashing Weapon . | . . . . . Piercing Weapon . | . . . . . Special Melee Weapon 1 | . 1 . . . Unidentified Prototypes . | . . . . . Parts Lost 10 | . 3 . . 7 Power 1 | . . . . 1 Propulsion 2 | . . . . 2 Utility 3 | . 2 . . 1 Weapon 4 | . 1 . . 3 Highest Loss Streak 7 | . 2 . . 7 To Critical Strikes . | . . . . . Average Slot Usage (%) 97 | . 97 100 100 77 Engine 13 | . 14 14 14 10 Leg 27 | . 28 28 28 21 Device 7 | . 18 . . . Processor 9 | . 2 14 14 12 Hackware 2 | . 4 5 . . Protection 7 | . . 8 14 7 Energy Gun 3 | . 9 . . . Ballistic Gun 4 | . 11 . . . Ballistic Cannon 18 | . 4 28 28 23 Naked Turns 3 | . . . . 3 Heaviest Build 16 | 10 13 16 16 16 Greatest Support 26 | 26 20 20 20 20 Greatest Overweight (x) 1 | . . . . 1 Average Overweight (x) . | . . . . . Largest Inventory Capacity 5 | 5 5 5 5 5 Average Capacity 5 | 5 5 5 5 5 Most Carried 5 | 4 5 5 5 5 Average Carried 4 | 2 4 5 5 4 Final Capacity 5 | 5 5 5 5 5 Final Carried 5 | 4 5 5 5 3 Class Distribution -------------------- 53% | Scavenger-Mutant 46% | Mutant Dominant Class ---------------- Mutant | -10/Materials Scavenger-Mutant | -10/Mines Scavenger-Mutant | -10/Exiles Scavenger-Mutant | -9/Mines Resources | -11 -10 -10 -10 -9 ----------- Run | Jun Mat Min Exi Min Matter Collected 602 | 314 231 57 . . Remotely 79 | 79 . . . . Salvage Created 434 | 139 216 65 . 14 Parts 38 | 9 20 9 . . Haulers Intercepted . | . . . . . Recyclers Shooed 1 | . . . . 1 Parts Field Recycled . | . . . . . Retrieved Matter . | . . . . . Parts Self-Destructed . | . . . . . Prevented . | . . . . . Kills | -11 -10 -10 -10 -9 ------- Run | Jun Mat Min Exi Min Combat Hostiles Destroyed 8 | . 6 1 . 1 Guns 2 | . 2 . . . Cannons 5 | . 3 1 . 1 AOE 1 | . 1 . . . Classes Destroyed 8 | 2 5 . . 1 Worker 4 | . 3 1 . . Tunneler 3 | 2 . 1 . . Recycler 1 | 1 . . . . Operator 1 | . 1 . . . Watcher 1 | . 1 . . . Swarmer 3 | . 3 . . . Grunt 4 | . 3 1 . . Assembled 1 | . . . . 1 Best Kill Streak 4 | 1 4 2 . 1 Combat Bots Only 3 | . 3 1 . 1 Max Kills in Single Turn 2 | 1 2 1 . 1 Gunslinging . | . . . . . Exploded 1 | . 1 . . . Melee . | . . . . . Uniques/NPCs Destroyed . | . . . . . Combat | -11 -10 -10 -10 -9 -------- Run | Jun Mat Min Exi Min Damage Taken 1122 | . 437 22 . 663 Core 257 | . 116 . . 141 Absorbed by Shields . | . . . . . Core Remaining (%) 100 | 100 . . . . Volleys Fired 44 | 4 28 8 . 4 Largest 2 | 2 2 2 . 2 Hottest 78 | 70 78 78 . 78 Shots Fired 81 | 8 52 16 . 5 Gun 36 | 8 28 . . . Cannon 40 | . 20 16 . 4 Launcher 5 | . 4 . . 1 Special . | . . . . . Kinetic 58 | 4 34 16 . 4 Thermal 18 | 4 14 . . . Explosive 5 | . 4 . . 1 Electromagnetic . | . . . . . Robot Hit Streak 7 | 4 7 4 . 1 Robot Miss Streak 7 | 2 7 2 . 2 Penetration Max . | . . . . . Secondary Targets . | . . . . . Shots Hit Robots 37 | 4 25 7 . 1 Core Hits 29 | 4 17 4 . 4 Critical Kills . | . . . . . Critical Parts Destroyed . | . . . . . Critical Strikes 3 | 1 1 1 . . Burn 2 | 1 1 . . . Blast 1 | . . 1 . . Melee Attacks . | . . . . . Impact . | . . . . . Slashing . | . . . . . Piercing . | . . . . . Sneak Attacks . | . . . . . Combat Hostiles . | . . . . . Follow-up Attacks . | . . . . . Damage Inflicted 964 | 60 537 200 . 167 Guns 287 | 60 227 . . . Cannons 336 | . 124 189 . 23 Explosions 304 | . 163 . . 141 Melee . | . . . . . Ramming 37 | . 23 11 . 3 Kinetic 488 | 10 266 189 . 23 Thermal 135 | 50 85 . . . Explosive 304 | . 163 . . 141 Electromagnetic . | . . . . . Impact . | . . . . . Slashing . | . . . . . Piercing . | . . . . . Highest Corruption . | . . . . . Average Corruption . | . . . . . Corruption Purged . | . . . . . Corruption Blocked . | . . . . . Overload Shots . | . . . . . Overflow Damage 9 | . . 9 . . Projectiles 9 | . . 9 . . Explosions . | . . . . . Melee . | . . . . . Knockbacks . | . . . . . Impact . | . . . . . Kinetic . | . . . . . Secondary . | . . . . . Self-Inflicted Damage 1 | . . . . 1 Shots . | . . . . . Rammed 1 | . . . . 1 Targets Rammed 10 | . 6 3 . 1 Kicked 9 | . 6 3 . . Crushed . | . . . . . Highest Temperature 276 | 30 276 147 . 38 Average Temperature 84 | 16 105 56 . 22 Received Heat Transfer 296 | . 198 12 . 86 Siege Activations . | . . . . . Robots Corrupted . | . . . . . Combat Hostiles . | . . . . . Parts Fried . | . . . . . Impact Corruptions . | . . . . . Robots Melted . | . . . . . Combat Hostiles . | . . . . . Parts Melted 2 | . 2 . . . Heat Transferred 555 | 222 333 . . . Parts Sabotaged . | . . . . . Parts Stolen . | . . . . . Parts Stripped . | . . . . . Power Chain Reactions . | . . . . . Missiles Intercepted . | . . . . . Alert | -11 -10 -10 -10 -9 ------- Run | Jun Mat Min Exi Min Peak Influence 180 | 15 180 130 . 1 Initial 70 | . 9 70 . . Average 39 | 10 33 89 . . Maximum Alert Level . | . . . . . Low Security (%) 100 | 100 100 100 . 100 Level 1 . | . . . . . Level 2 . | . . . . . Level 3 . | . . . . . Level 4 . | . . . . . Level 5 . | . . . . . High Security . | . . . . . Max Security . | . . . . . Squads Dispatched 1 | . 1 . . . Investigation . | . . . . . Extermination . | . . . . . Reinforcement 1 | . 1 . . . Assault . | . . . . . Garrison . | . . . . . Intercept . | . . . . . Searches Triggered . | . . . . . Construction Impeded . | . . . . . Haulers Reinforced . | . . . . . Active Scanning Responses . | . . . . . Cargo Convoy Interrupts . | . . . . . Stealth | -11 -10 -10 -10 -9 --------- Run | Jun Mat Min Exi Min Distress Signals 3 | . 3 . . . Communications Jammed . | . . . . . Distress Signals . | . . . . . Times Spotted 40 | . 16 2 . 22 Peak Tracking Total 16 | . 4 2 . 16 Tactical Retreats 2 | . 1 1 . . Traps | -11 -10 -10 -10 -9 ------- Run | Jun Mat Min Exi Min Traps Triggered . | . . . . . Indirectly . | . . . . . Trap Hack Attempts 22 | . 22 . . . Triggered . | . . . . . Disarmed . | . . . . . Reprogrammed . | . . . . . Reused . | . . . . . Traps Extracted . | . . . . . Installed . | . . . . . Triggered . | . . . . . Machines | -11 -10 -10 -10 -9 ---------- Run | Jun Mat Min Exi Min Machines Disabled 2 | . 1 1 . . Max in Single Turn 1 | . 1 1 . . Machines Repaired . | . . . . . Machines Sabotaged . | . . . . . Overloaded Fab Kills . | . . . . . Hacking | -11 -10 -10 -10 -9 --------- Run | Jun Mat Min Exi Min Machines Accessed 7 | . 2 . 4 1 Terminals 2 | . 2 . . . Fabricators . | . . . . . Repair Stations . | . . . . . Recycling Units . | . . . . . Scanalyzers . | . . . . . Garrison Access . | . . . . . Total Hacks 12 | . 7 . 4 1 Successful 7 | . 2 . 4 1 Failed 5 | . 5 . . . Catastrophic . | . . . . . Database Lockouts . | . . . . . Manual 4 | . 4 . . . Terminals 7 | . 7 . . . Fabricators . | . . . . . Repair Stations . | . . . . . Recycling Units . | . . . . . Scanalyzers . | . . . . . Garrison Access . | . . . . . Terminal Hacks 7 | . 2 . 4 1 Record 4 | . . . 4 . Open Door 1 | . . . . 1 Patrol Status 1 | . 1 . . . Investigation Status 1 | . 1 . . . Fabricator Hacks . | . . . . . Repair Station Hacks . | . . . . . Recycling Unit Hacks . | . . . . . Scanalyzer . | . . . . . Garrison Access Hacks . | . . . . . Unauthorized Hacks . | . . . . . Terminals . | . . . . . Fabricators . | . . . . . Repair Stations . | . . . . . Recycling Units . | . . . . . Scanalyzers . | . . . . . Garrison Access . | . . . . . Data Cores Recovered . | . . . . . Used . | . . . . . Hacking Detections 2 | . 2 . . . Full Trace Events . | . . . . . Feedback Events . | . . . . . Feedback Blocked . | . . . . . Robot Schematics Acquired . | . . . . . Robots Built . | . . . . . Authchips . | . . . . . Time . | . . . . . Total Robot Build Rating . | . . . . . Part Schematics Acquired . | . . . . . Parts Built . | . . . . . Authchips . | . . . . . Time . | . . . . . Total Part Build Rating . | . . . . . Parts Repaired . | . . . . . Time . | . . . . . Parts Recycled . | . . . . . Recycled Matter . | . . . . . Retrieved Matter . | . . . . . Retrieved Components . | . . . . . Parts Scanalyzed . | . . . . . Part Schematics Acquired . | . . . . . Parts Damaged . | . . . . . Bothacking | -11 -10 -10 -10 -9 ------------ Run | Jun Mat Min Exi Min Used RIF Installer . | . . . . . Robots Hacked . | . . . . . Non-combat . | . . . . . Combat . | . . . . . Robot Hacks Applied . | . . . . . Relay Couplers Released . | . . . . . Fabnet Peak Effective % . | . . . . . Robots Rewired . | . . . . . Allies Hacked . | . . . . . Hacks Repelled . | . . . . . Allies | -11 -10 -10 -10 -9 -------- Run | Jun Mat Min Exi Min Total Allies . | . . . . . Largest Group . | . . . . . Highest-Rated Group . | . . . . . Highest-Rated Ally . | . . . . . Total Orders . | . . . . . Ally Attacks . | . . . . . Total Damage . | . . . . . Kills . | . . . . . Allies Corrupted . | . . . . . Allies Melted . | . . . . . Intel | -11 -10 -10 -10 -9 ------- Run | Jun Mat Min Exi Min Robot Analysis Total . | . . . . . Derelict Logs Recovered . | . . . . . Drone Launches . | . . . . . Drone Recoveries . | . . . . . Exploration | -11 -10 -10 -10 -9 ------------- Run | Jun Mat Min Exi Min Turns Passed 1829 | 158 659 246 679 87 Spaces Moved 1129 | 114 216 169 566 64 Core 25 | 12 . . . 13 Treads . | . . . . . Legs 1085 | 83 216 169 566 51 Wheels 19 | 19 . . . . Hover . | . . . . . Flight . | . . . . . Fastest Speed 50 | 50 120 120 120 50 Average Speed 118 | 107 120 120 120 111 Slowest Speed 190 | 120 120 120 120 190 Overloaded Moves . | . . . . . Propulsion Burnouts . | . . . . . Robots Hopped . | . . . . . Cave-ins Triggered . | . . . . . Exploration Rate (%) 38 | 4 33 31 91 31 Regions Visited 4 Branch Regions 3 Pre-discovered Areas 1 | . . 1 . . Known Exits Taken 3 | . 1 1 1 . Unknown Exits Taken 1 | 1 . . . . Scrap Searched 1 | . . 1 . . Spaces Dug . | . . . . . Terrain Destroyed 12 | . 11 . . 1 Melee . | . . . . . Projectile 2 | . 2 . . . AOE 10 | . 9 . . 1 Terrain Rammed . | . . . . . Walls Destroyed . | . . . . . Machines Disabled . | . . . . . Actions | -11 -10 -10 -10 -9 --------- Run | Jun Mat Min Exi Min Total 1540 | 141 564 196 565 74 Wait 281 | . 268 11 . 2 Move 1125 | 113 215 168 565 64 Hop . | . . . . . Pick Up 15 | 9 6 . . . Fast Attach 10 | 6 3 1 . . Attach 8 | 4 2 . . 2 Detach 1 | . 1 . . . Swap 9 | 1 5 2 . 1 Drop 15 | 4 8 3 . . Fire 44 | 4 28 8 . 4 Melee . | . . . . . Ram 1 | . . . . 1 Kick 9 | . 6 3 . . Crush . | . . . . . Escape Stasis . | . . . . . Rewire . | . . . . . Trap 22 | . 22 . . . Miscellaneous . | . . . . . Route ------- -11/Junkyard -10/Materials -10/Mines (discovered 2 exits: *Mat / *Exi) -10/Exiles (discovered 2 exits: *Min x2) -9/Mines History --------- Turn | Location | Event 6 | -11/Junkyard | Discovered new exit (range 14) 159 | -11/Junkyard | Entered Materials 311 | -10/Materials | Build established: Mutant 804 | -10/Materials | Discovered new exit (range 9) 816 | -10/Materials | Identified exit to Mines 818 | -10/Materials | Entered Mines 824 | -10/Mines | Learned location of Storage (-8) 830 | -10/Mines | Met a Derelict bent on vengeance 934 | -10/Mines | Discovered new exit (range 3) 937 | -10/Mines | Identified exit to Materials 1055 | -10/Mines | Deemed a non-threat by the Exiles lab entrance 1056 | -10/Mines | Discovered new exit (range 5) 1061 | -10/Mines | Identified exit to Exiles 1064 | -10/Mines | Entered Exiles 1064 | -10/Exiles | Found Exiles lab abandoned 1081 | -10/Exiles | Discovered new exit (range 15) 1097 | -10/Exiles | Identified exit to Mines 1312 | -10/Exiles | Build established: Scavenger-Mutant 1470 | -10/Exiles | Discovered exit to Mines (range 10) 1743 | -10/Exiles | Entered Mines 1789 | -9/Mines | Assembled infested the area 1791 | -9/Mines | Met a Derelict who couldn't figure out how to use a Trap Extractor 1794 | -9/Mines | Assisted by a Guerilla fighting off Assembled 1800 | -9/Mines | Core integrity fell below 50% 1826 | -9/Mines | Core integrity fell below 20% 1827 | -9/Mines | Released all parts (2) 1830 | -9/Mines | Destroyed by S-10 Pest with Light Assault Rifle Last Messages --------------- 01798_ PY-4H7(g) destroyed. 01798_ Lgt. Armor Plating destroyed. 01805_ Grenade Launcher destroyed. 01807_ U-05 Engineer destroyed. 01807_ U-05 Engineer suffers critical hit (Destroy). 01807_ U-05 Engineer destroyed. 01810_ Aluminum Leg destroyed. 01810_ as-37000 destroyed. 01813_ Aluminum Leg destroyed. 01814_ Ion Engine destroyed. 01814_ Imp. Light Cannon destroyed. 01815_ as-74339 destroyed. 01815_ as-84180 sneak attacks. 01815_ R-06 Scavenger system corrupted by crushing effect. 01815_ R-06 Scavenger destroyed. 01816_ Slammed into R-06 Scavenger. 01817_ R-06 Scavenger destroyed. 01825_ Imp. Light Cannon destroyed. 01827_ Released Signal Interpreter. 01827_ Released Aluminum Leg. Map ----- +----------------------------------------------------+ | ?????????????????????????????????????????????????? | | ?????????????????????????????????????????????????? | | ?????????????????????????????????????????????????? | | ?????????????????????????????????????????????????? | | ?????????????????????????????????????????????????? | | ?????????????????????????????????????????????????? | | ?????????????????????????????????????????????????? | | ?????????????????????????????????????????????????? | | ?????????????????????????????????????????????????? | | ?????????????????????????????????????????????????? | | ?????????????????????????????????????????????????? | | ?????????????????????????????????????????????????? | | ?????????????????????????????????????????????????? | | ???????????????????????????????#####?????????????? | | ????????????????#??????????????? #?????????????? | | ????????????????# ?????????????? #?????????????? | | ????????????????# ?????????????# #?????????????? | | ????????????????# ?????????##### #?????????????? | | ????????????????# ????????# *%=%##????????????? | | ?????????????????# ???????# ### ##??????#????? | | ??????????????????# #??????# #?# = ###??? #????? | | ???????????????????# ####??# #?#%!% ##?? #??? | | ???????????????????# s ##?#=#?# !%! ## ### | | ?????????????????### s ###a#?## = % # #?? | | ?????????????# ks sak #??## % #?? | | ???????????????????##### @ ####???## ##? | | ???????????????????????#####?####??## #? | | ?????????????????????????????#" "## ## | | ?????????????????????????????#" #%=# # | | ?????????????????????????????# ! [!# % # | | ?????????????????????????????#" ! =%= ## | | ?????????????????????????????# ! ]# ! ####? | | ?????????????????????????????## !### ##???? | | ??????????????????????????????###??## "#????? | | ???????????????????????????????????# ##????? | | ???????????????????????????????????# ##????? | | ???????????????????????????????????# ##???? | | ???????????????????????????????????# ##??? | | ???????????????????????????????????# ##?? | | ???????????????????????????????????## = ##? | | ???????????????????????????????????## %* ## | | ???????????????????????????# ## % # | | ?????????????????????????????# % # | | ?????????????????????????????## ### ## | | ??????????????????????????????## ##?## ##? | | ???????????????????????????????## #???## #?? | | ????????????????????????????????# ?????# ##? | | ????????????????????????????????## ?????# ## | | ?????????????????????????????????## ?????# # | | ??????????????????????????????????## ?????### | +----------------------------------------------------+ Best States ------------- Heat Dissipation 25 Energy Generation 10 Energy Capacity 250 Matter Stores 300 Matter Capacity 300 Sight Range 16 Terrain Scan Range 16 Terrain Scan Density 10 Armor Coverage 150 Evasion (%) 55 Offensive Hacking 10 Item Schematics ----------------- None Robot Schematics ------------------ None Fabricated ------------ Nothing Alien Tech Used ----------------- None Achievements -------------- None Challenges ------------ None Game ------ Seed HypercooledWeldingFlail Manual? 0 Play Time 00:19:27 Cumulative 8.0 hours Start 2024.02.12 @ 13:05:10 End 2024.02.12 @ 13:22:14 Sessions 1 Manual Loads 0 Difficulty Rogue Special Mode None Game No. 7 Rogue 7 Adventurer 0 Explorer 0 Win Type - Total 0 Types 0/0/0/0/0/0/0/0/0 Lore% 8 Gallery% 10 Achievement% 11 Wizard Run 0 Options --------- ASCII 0 Keyboard 0 Movement Numpad Keybinds 0 Fullscreen 1 Font 18/SmallcapsGlow Map View 76x50 Tactical HUD 1 Map Filters NONE Filters NONE Steam 1 RUN: bd9b0212-8ffe-44c5-a0ad-bc55e11e3649